[Event "Early-Titled-Tuesday-Blitz-February-20-2024"]
[Site "Chess.com"]
[Date "2024.02.20"]
[Round "8"]
[White "the-do0on"]
[Black "le-castor-faineant"]
[Result "0-1"]
[WhiteElo "2057"]
[BlackElo "2286"]
[TimeControl "180+1"]
[EndTime "9:30:28 PST"]
[Termination "le-castor-faineant won by checkmate"]

1. e4 {[%clk 0:03:00.9]} 1... e5 {[%clk 0:02:59.5]} 2. f4 {[%clk 0:02:59.4]}
2... d5 {[%clk 0:02:58.6]} 3. exd5 {[%clk 0:02:59]} 3... exf4 {[%clk 0:02:53.4]}
4. d4 {[%clk 0:02:56.6]} 4... Nf6 {[%clk 0:02:53.2]} 5. Nf3 {[%clk 0:02:49.5]}
5... Nxd5 {[%clk 0:02:53]} 6. Bd3 {[%clk 0:02:46.8]} 6... Bd6 {[%clk 0:02:48.6]}
7. O-O {[%clk 0:02:45.7]} 7... O-O {[%clk 0:02:48.8]} 8. Re1 {[%clk 0:02:44.8]}
8... Bg4 {[%clk 0:02:47.9]} 9. c4 {[%clk 0:02:40.6]} 9... Ne3 {[%clk 0:02:38.8]}
10. Bxe3 {[%clk 0:02:35.6]} 10... fxe3 {[%clk 0:02:39.7]} 11. Rxe3 {[%clk
0:02:35.6]} 11... Nc6 {[%clk 0:02:40.6]} 12. Nc3 {[%clk 0:02:29.3]} 12... Nxd4
{[%clk 0:02:32.1]} 13. Bxh7+ {[%clk 0:02:02]} 13... Kxh7 {[%clk 0:02:33]} 14.
Qxd4 {[%clk 0:02:01.8]} 14... Bxf3 {[%clk 0:02:25.7]} 15. Qd3+ {[%clk
0:02:02.2]} 15... Kg8 {[%clk 0:02:23.9]} 16. Rxf3 {[%clk 0:02:01.6]} 16... Bc5+
{[%clk 0:02:23.2]} 17. Kh1 {[%clk 0:02:00.3]} 17... Qxd3 {[%clk 0:02:20.2]} 18.
Rxd3 {[%clk 0:02:01.2]} 18... Rad8 {[%clk 0:02:19.7]} 19. Rad1 {[%clk
0:02:01.6]} 19... Be7 {[%clk 0:02:17.4]} 20. Nd5 {[%clk 0:02:00.2]} 20... Bd6
{[%clk 0:02:15.8]} 21. c5 {[%clk 0:01:55.3]} 21... c6 {[%clk 0:02:09.7]} 22.
cxd6 {[%clk 0:01:49.8]} 22... cxd5 {[%clk 0:02:09.5]} 23. Rxd5 {[%clk
0:01:50.7]} 23... Rd7 {[%clk 0:02:09.1]} 24. Kg1 {[%clk 0:01:34.1]} 24... f6
{[%clk 0:02:07.5]} 25. Rb5 {[%clk 0:01:10.5]} 25... Rfd8 {[%clk 0:02:03.6]} 26.
Kf1 {[%clk 0:01:03.8]} 26... b6 {[%clk 0:02:03.7]} 27. Rbd5 {[%clk 0:01:03]}
27... Kf7 {[%clk 0:02:04]} 28. Ke2 {[%clk 0:01:03]} 28... Ke6 {[%clk 0:02:04.4]}
29. Ke3 {[%clk 0:01:03.3]} 29... Rxd6 {[%clk 0:01:57.1]} 30. Rxd6+ {[%clk
0:01:04.2]} 30... Rxd6 {[%clk 0:01:57.6]} 31. Rxd6+ {[%clk 0:01:05.1]} 31...
Kxd6 {[%clk 0:01:58.4]} 32. Kd4 {[%clk 0:01:06]} 32... f5 {[%clk 0:01:52.8]} 33.
h4 {[%clk 0:01:01]} 33... g6 {[%clk 0:01:51.9]} 34. g3 {[%clk 0:00:57]} 34... a6
{[%clk 0:01:49.1]} 35. a4 {[%clk 0:00:54.5]} 35... Ke6 {[%clk 0:01:34.7]} 36. b4
{[%clk 0:00:44.1]} 36... Kd6 {[%clk 0:01:29]} 37. a5 {[%clk 0:00:37.1]} 37... b5
{[%clk 0:01:26.6]} 38. h5 {[%clk 0:00:26.5]} 38... gxh5 {[%clk 0:01:24.7]} 39.
Ke3 {[%clk 0:00:23.5]} 39... Kd5 {[%clk 0:01:05.6]} 40. Kd3 {[%clk 0:00:17.9]}
40... f4 {[%clk 0:01:02.1]} 41. gxf4 {[%clk 0:00:17.1]} 41... h4 {[%clk
0:01:02.6]} 42. f5 {[%clk 0:00:14.4]} 42... h3 {[%clk 0:01:02.4]} 43. f6 {[%clk
0:00:15.3]} 43... Ke6 {[%clk 0:01:02.6]} 44. Kd4 {[%clk 0:00:13.2]} 44... h2
{[%clk 0:00:58.9]} 45. Kc5 {[%clk 0:00:14.1]} 45... h1=Q {[%clk 0:00:57.3]} 46.
Kb6 {[%clk 0:00:14.6]} 46... Qa8 {[%clk 0:00:57]} 47. f7 {[%clk 0:00:14.2]}
47... Kxf7 {[%clk 0:00:57]} 48. Kc7 {[%clk 0:00:14.7]} 48... Ke6 {[%clk
0:00:57]} 49. Kb6 {[%clk 0:00:14.8]} 49... Kd5 {[%clk 0:00:56.3]} 50. Kc7 {[%clk
0:00:15]} 50... Qc6+ {[%clk 0:00:56.6]} 51. Kb8 {[%clk 0:00:15.3]} 51... Qd7
{[%clk 0:00:55.4]} 52. Ka8 {[%clk 0:00:15.3]} 52... Kc6 {[%clk 0:00:55.9]} 53.
Kb8 {[%clk 0:00:15.4]} 53... Qb7# {[%clk 0:00:55.8]} 0-1

[Event "Early-Titled-Tuesday-Blitz-February-20-2024"]
[Site "Chess.com"]
[Date "2024.02.20"]
[Round "8"]
[White "Anton_Demchenko"]
[Black "Rodalquilar"]
[Result "0-1"]
[WhiteElo "2899"]
[BlackElo "2769"]
[TimeControl "180+1"]
[EndTime "9:30:32 PST"]
[Termination "Rodalquilar won by checkmate"]

1. e4 {[%clk 0:03:00.9]} 1... d5 {[%clk 0:03:00.2]} 2. exd5 {[%clk 0:03:01.1]}
2... Qxd5 {[%clk 0:03:01.1]} 3. Nc3 {[%clk 0:03:01.7]} 3... Qa5 {[%clk
0:03:01.4]} 4. Bc4 {[%clk 0:02:58.7]} 4... Nf6 {[%clk 0:03:00.3]} 5. Nge2 {[%clk
0:02:59.1]} 5... c6 {[%clk 0:02:52.4]} 6. O-O {[%clk 0:02:58.4]} 6... Bg4 {[%clk
0:02:35.9]} 7. h3 {[%clk 0:02:57.4]} 7... Bh5 {[%clk 0:02:36.4]} 8. d3 {[%clk
0:02:55.8]} 8... e6 {[%clk 0:02:34.3]} 9. Qe1 {[%clk 0:02:53.4]} 9... Bxe2
{[%clk 0:02:16.4]} 10. Qxe2 {[%clk 0:02:52.1]} 10... Nbd7 {[%clk 0:02:16.5]} 11.
Kh1 {[%clk 0:02:34.8]} 11... Qc7 {[%clk 0:02:11.8]} 12. f4 {[%clk 0:02:32.7]}
12... O-O-O {[%clk 0:02:11.2]} 13. f5 {[%clk 0:02:31.4]} 13... exf5 {[%clk
0:01:58.3]} 14. Rxf5 {[%clk 0:02:28.7]} 14... Re8 {[%clk 0:01:57.2]} 15. Qf2
{[%clk 0:02:06.7]} 15... Bc5 {[%clk 0:01:19.3]} 16. d4 {[%clk 0:02:06.5]} 16...
Bd6 {[%clk 0:01:04.9]} 17. Bd2 {[%clk 0:02:06.4]} 17... Re7 {[%clk 0:00:59.3]}
18. Rf1 {[%clk 0:02:00.7]} 18... Rhe8 {[%clk 0:00:58.8]} 19. Qf3 {[%clk
0:01:53.1]} 19... Qb6 {[%clk 0:00:50.6]} 20. Qd3 {[%clk 0:01:23.2]} 20... Qxb2
{[%clk 0:00:15.1]} 21. Ra5 {[%clk 0:01:15.4]} 21... Qb6 {[%clk 0:00:11.7]} 22.
Na4 {[%clk 0:01:15.6]} 22... Qc7 {[%clk 0:00:10]} 23. Rxa7 {[%clk 0:01:16.3]}
23... Ne4 {[%clk 0:00:08.9]} 24. Be1 {[%clk 0:00:48.2]} 24... Kb8 {[%clk
0:00:09.2]} 25. Ra5 {[%clk 0:00:42.7]} 25... Bg3 {[%clk 0:00:07.6]} 26. Qa3
{[%clk 0:00:10.5]} 26... Bxe1 {[%clk 0:00:04.9]} 27. Nc3 {[%clk 0:00:11.3]}
27... Nb6 {[%clk 0:00:03.9]} 28. Nxe4 {[%clk 0:00:05.4]} 28... Rxe4 {[%clk
0:00:04.8]} 29. Rxf7 {[%clk 0:00:03.7]} 29... Bg3 {[%clk 0:00:05.2]} 30. Raf5
{[%clk 0:00:01.5]} 30... Re1+ {[%clk 0:00:05.5]} 31. Rf1 {[%clk 0:00:02.2]}
31... Qxf7 {[%clk 0:00:05.7]} 32. Bxf7 {[%clk 0:00:01.2]} 32... Rxf1# {[%clk
0:00:06.2]} 0-1

[Event "Early-Titled-Tuesday-Blitz-February-20-2024"]
[Site "Chess.com"]
[Date "2024.02.20"]
[Round "8"]
[White "HanSchut"]
[Black "ajeale2"]
[Result "1-0"]
[WhiteElo "2305"]
[BlackElo "2482"]
[TimeControl "180+1"]
[EndTime "9:30:35 PST"]
[Termination "HanSchut won on time"]

1. e4 {[%clk 0:02:54.8]} 1... g6 {[%clk 0:02:58.2]} 2. d4 {[%clk 0:02:54.5]}
2... Bg7 {[%clk 0:02:58.8]} 3. Nc3 {[%clk 0:02:55.1]} 3... c5 {[%clk 0:02:58.6]}
4. dxc5 {[%clk 0:02:51.8]} 4... Qa5 {[%clk 0:02:55.4]} 5. Bd2 {[%clk 0:02:30.9]}
5... Qxc5 {[%clk 0:02:54.6]} 6. Nf3 {[%clk 0:02:23.5]} 6... Nf6 {[%clk
0:02:47.2]} 7. Bd3 {[%clk 0:02:24]} 7... a6 {[%clk 0:02:43]} 8. Qe2 {[%clk
0:02:14]} 8... b5 {[%clk 0:02:39.2]} 9. e5 {[%clk 0:02:09.5]} 9... Ng4 {[%clk
0:02:25.4]} 10. Ne4 {[%clk 0:02:09.1]} 10... Qc7 {[%clk 0:02:05.3]} 11. Nd6+
{[%clk 0:01:58]} 11... Kf8 {[%clk 0:01:58.6]} 12. Nxc8 {[%clk 0:01:48.3]} 12...
Qxc8 {[%clk 0:01:58.5]} 13. Qe4 {[%clk 0:01:48.7]} 13... d5 {[%clk 0:01:59.1]}
14. exd6 {[%clk 0:01:46.9]} 14... Nc6 {[%clk 0:01:53.2]} 15. dxe7+ {[%clk
0:01:27.2]} 15... Kg8 {[%clk 0:01:53]} 16. h3 {[%clk 0:01:08.7]} 16... Nf6
{[%clk 0:01:52.6]} 17. Qe2 {[%clk 0:01:05.1]} 17... Ra7 {[%clk 0:01:48]} 18. O-O
{[%clk 0:00:58.3]} 18... Rxe7 {[%clk 0:01:47.3]} 19. Qd1 {[%clk 0:00:59]} 19...
h6 {[%clk 0:01:42.1]} 20. Re1 {[%clk 0:00:59.2]} 20... Rxe1+ {[%clk 0:01:41.8]}
21. Qxe1 {[%clk 0:00:59.2]} 21... Kh7 {[%clk 0:01:42.4]} 22. a4 {[%clk
0:00:59.3]} 22... Re8 {[%clk 0:01:40.4]} 23. Qf1 {[%clk 0:00:59.8]} 23... Nd5
{[%clk 0:01:33.7]} 24. axb5 {[%clk 0:00:57.2]} 24... axb5 {[%clk 0:01:33.9]} 25.
Bxb5 {[%clk 0:00:57.3]} 25... Bxb2 {[%clk 0:01:33.8]} 26. Re1 {[%clk 0:00:39.2]}
26... Rxe1 {[%clk 0:01:02.2]} 27. Qxe1 {[%clk 0:00:40.1]} 27... Ncb4 {[%clk
0:01:02.7]} 28. c4 {[%clk 0:00:31.2]} 28... Nd3 {[%clk 0:00:52.9]} 29. Qb1
{[%clk 0:00:20.3]} 29... Nxf2 {[%clk 0:00:22.9]} 30. Kxf2 {[%clk 0:00:16.5]}
30... Qc5+ {[%clk 0:00:22]} 31. Kf1 {[%clk 0:00:16.1]} 31... Nf6 {[%clk
0:00:03.6]} 32. Qxb2 {[%clk 0:00:14.5]} 32... Ne4 {[%clk 0:00:04.3]} 33. Bc3
{[%clk 0:00:13.8]} 33... Ng3+ {[%clk 0:00:03.2]} 34. Ke1 {[%clk 0:00:13.5]}
34... Qe3+ {[%clk 0:00:03.7]} 35. Kd1 {[%clk 0:00:12.3]} 35... Qd3+ {[%clk
0:00:03.9]} 36. Bd2 {[%clk 0:00:12.3]} 36... Qf1+ {[%clk 0:00:02]} 37. Kc2
{[%clk 0:00:12.4]} 37... Qxg2 {[%clk 0:00:02.6]} 38. Qf6 {[%clk 0:00:11.7]}
38... Kg8 {[%clk 0:00:01.8]} 39. Ne5 {[%clk 0:00:11.3]} 1-0

[Event "Early-Titled-Tuesday-Blitz-February-20-2024"]
[Site "Chess.com"]
[Date "2024.02.20"]
[Round "8"]
[White "GeorgiosSouleidis"]
[Black "KononenkoD"]
[Result "0-1"]
[WhiteElo "2679"]
[BlackElo "2539"]
[TimeControl "180+1"]
[EndTime "9:30:36 PST"]
[Termination "KononenkoD won on time"]

1. e4 {[%clk 0:03:00.9]} 1... c6 {[%clk 0:02:59.9]} 2. Nc3 {[%clk 0:03:00.7]}
2... d5 {[%clk 0:03:00.8]} 3. Nf3 {[%clk 0:03:01.4]} 3... Bg4 {[%clk 0:03:00.9]}
4. h3 {[%clk 0:03:01.5]} 4... Bxf3 {[%clk 0:03:01.3]} 5. Qxf3 {[%clk 0:03:02.4]}
5... e6 {[%clk 0:03:00.4]} 6. d4 {[%clk 0:03:02.3]} 6... Nf6 {[%clk 0:02:56.9]}
7. a3 {[%clk 0:02:51]} 7... dxe4 {[%clk 0:02:42.4]} 8. Qe3 {[%clk 0:02:50.7]}
8... Nd5 {[%clk 0:02:42]} 9. Qxe4 {[%clk 0:02:49.7]} 9... Nxc3 {[%clk
0:02:42.5]} 10. bxc3 {[%clk 0:02:50.5]} 10... Nd7 {[%clk 0:02:42]} 11. Bd3
{[%clk 0:02:50]} 11... Nf6 {[%clk 0:02:41.5]} 12. Qh4 {[%clk 0:02:50.2]} 12...
Be7 {[%clk 0:02:40.6]} 13. O-O {[%clk 0:02:45.8]} 13... Nd5 {[%clk 0:02:30.8]}
14. Qg3 {[%clk 0:02:45.3]} 14... Nxc3 {[%clk 0:02:29.8]} 15. Bb2 {[%clk
0:02:13.9]} 15... Qxd4 {[%clk 0:02:20.3]} 16. Kh1 {[%clk 0:02:13.8]} 16... Bf6
{[%clk 0:02:03.7]} 17. a4 {[%clk 0:01:28]} 17... O-O {[%clk 0:01:24.7]} 18. Ra3
{[%clk 0:01:17.3]} 18... Ne2 {[%clk 0:01:14.5]} 19. Bxe2 {[%clk 0:00:49]} 19...
Qxb2 {[%clk 0:01:13.9]} 20. Rb3 {[%clk 0:00:48.3]} 20... Qxc2 {[%clk 0:01:13.8]}
21. Bd3 {[%clk 0:00:48.9]} 21... Qc5 {[%clk 0:00:58.5]} 22. Rxb7 {[%clk
0:00:49.3]} 22... Rad8 {[%clk 0:00:56.6]} 23. Rfb1 {[%clk 0:00:37.3]} 23... g6
{[%clk 0:00:51.9]} 24. Qf3 {[%clk 0:00:35.3]} 24... Kg7 {[%clk 0:00:36.8]} 25.
Be4 {[%clk 0:00:35.3]} 25... Rd2 {[%clk 0:00:30.3]} 26. Kg1 {[%clk 0:00:30.3]}
26... Rxf2 {[%clk 0:00:26.1]} 27. Qxf2 {[%clk 0:00:03.7]} 27... Bd4 {[%clk
0:00:26.1]} 28. Rf1 {[%clk 0:00:04.6]} 28... Bxf2+ {[%clk 0:00:19.2]} 29. Rxf2
{[%clk 0:00:05.5]} 29... Kh6 {[%clk 0:00:18.4]} 30. g4 {[%clk 0:00:04.9]} 30...
f5 {[%clk 0:00:17.4]} 31. gxf5 {[%clk 0:00:04.1]} 31... exf5 {[%clk 0:00:16.3]}
32. Bf3 {[%clk 0:00:04]} 32... Re8 {[%clk 0:00:16.2]} 33. Kg2 {[%clk 0:00:04.2]}
33... Re3 {[%clk 0:00:16.7]} 34. Rc7 {[%clk 0:00:02.9]} 34... Qd6 {[%clk
0:00:16]} 35. Rxc6 {[%clk 0:00:02.8]} 35... Qf4 {[%clk 0:00:15.5]} 0-1

[Event "Early-Titled-Tuesday-Blitz-February-20-2024"]
[Site "Chess.com"]
[Date "2024.02.20"]
[Round "8"]
[White "NikitaShnadrygin"]
[Black "ImportedItalianMaple"]
[Result "1/2-1/2"]
[WhiteElo "2696"]
[BlackElo "2533"]
[TimeControl "180+1"]
[EndTime "9:30:37 PST"]
[Termination "Game drawn by repetition"]

1. e4 {[%clk 0:03:00.9]} 1... g6 {[%clk 0:02:59.9]} 2. d4 {[%clk 0:03:01]} 2...
Bg7 {[%clk 0:03:00.5]} 3. Nc3 {[%clk 0:03:01.1]} 3... d5 {[%clk 0:03:01.2]} 4.
exd5 {[%clk 0:02:56.6]} 4... Nf6 {[%clk 0:03:01.8]} 5. Bc4 {[%clk 0:02:53.9]}
5... Nbd7 {[%clk 0:03:01.7]} 6. Bb3 {[%clk 0:02:51.1]} 6... Nb6 {[%clk
0:03:01.3]} 7. Nge2 {[%clk 0:02:47.2]} 7... a5 {[%clk 0:02:59.5]} 8. a3 {[%clk
0:02:42.1]} 8... a4 {[%clk 0:02:59.5]} 9. Ba2 {[%clk 0:02:42]} 9... Nbxd5 {[%clk
0:03:00.2]} 10. Nxd5 {[%clk 0:02:42.3]} 10... Nxd5 {[%clk 0:03:00.9]} 11. c4
{[%clk 0:02:42.2]} 11... Nf6 {[%clk 0:03:00.7]} 12. O-O {[%clk 0:02:40.8]} 12...
O-O {[%clk 0:03:01.3]} 13. h3 {[%clk 0:02:36.4]} 13... b6 {[%clk 0:03:01]} 14.
Be3 {[%clk 0:02:30]} 14... Bb7 {[%clk 0:03:01.3]} 15. d5 {[%clk 0:02:25.6]}
15... c5 {[%clk 0:02:51]} 16. Nc3 {[%clk 0:02:20.9]} 16... Qd7 {[%clk
0:02:41.8]} 17. b3 {[%clk 0:02:11.4]} 17... axb3 {[%clk 0:02:35.1]} 18. Qxb3
{[%clk 0:02:02.5]} 18... Ra6 {[%clk 0:02:30.4]} 19. Rad1 {[%clk 0:01:35.9]}
19... Rfa8 {[%clk 0:02:29.4]} 20. Nb5 {[%clk 0:01:35.9]} 20... Ne4 {[%clk
0:02:18.5]} 21. Bf4 {[%clk 0:01:09.6]} 21... Nd6 {[%clk 0:02:18.6]} 22. Bxd6
{[%clk 0:01:09.6]} 22... exd6 {[%clk 0:02:18.9]} 23. Bb1 {[%clk 0:01:07.1]}
23... Qd8 {[%clk 0:02:02.4]} 24. Rfe1 {[%clk 0:00:58.4]} 24... Bc8 {[%clk
0:02:00.6]} 25. Qg3 {[%clk 0:00:57.7]} 25... Bd7 {[%clk 0:01:55.9]} 26. Nxd6
{[%clk 0:00:51.7]} 26... Rxa3 {[%clk 0:01:54.9]} 27. Qf4 {[%clk 0:00:47.7]}
27... Qf6 {[%clk 0:01:49.6]} 28. Qxf6 {[%clk 0:00:47.5]} 28... Bxf6 {[%clk
0:01:50.5]} 29. Ne4 {[%clk 0:00:42.7]} 29... Bd4 {[%clk 0:01:47.6]} 30. Rxd4
{[%clk 0:00:42.9]} 30... cxd4 {[%clk 0:01:47.7]} 31. Nf6+ {[%clk 0:00:43.6]}
31... Kg7 {[%clk 0:01:48.2]} 32. Nxd7 {[%clk 0:00:44.3]} 32... R8a6 {[%clk
0:01:09]} 33. d6 {[%clk 0:00:36.9]} 33... Rc3 {[%clk 0:01:05.7]} 34. Ne5 {[%clk
0:00:32.6]} 34... b5 {[%clk 0:01:01.1]} 35. d7 {[%clk 0:00:29.8]} 35... Rd6
{[%clk 0:00:57.2]} 36. cxb5 {[%clk 0:00:20.7]} 36... f6 {[%clk 0:00:56.5]} 37.
Nf3 {[%clk 0:00:07.8]} 37... Rxd7 {[%clk 0:00:56.4]} 38. Rd1 {[%clk 0:00:08.4]}
38... d3 {[%clk 0:00:51.2]} 39. Kf1 {[%clk 0:00:07.8]} 39... Rb3 {[%clk
0:00:50.5]} 40. Ke1 {[%clk 0:00:04.4]} 40... Re7+ {[%clk 0:00:43.2]} 41. Kf1
{[%clk 0:00:04.9]} 41... Rd7 {[%clk 0:00:43.7]} 42. Ke1 {[%clk 0:00:05.1]} 42...
Re7+ {[%clk 0:00:27.8]} 43. Kf1 {[%clk 0:00:05.4]} 43... Rd7 {[%clk 0:00:23.3]}
1/2-1/2

[Event "Early-Titled-Tuesday-Blitz-February-20-2024"]
[Site "Chess.com"]
[Date "2024.02.20"]
[Round "8"]
[White "tetrix83"]
[Black "GrotBchess"]
[Result "1-0"]
[WhiteElo "2517"]
[BlackElo "2367"]
[TimeControl "180+1"]
[EndTime "9:30:38 PST"]
[Termination "tetrix83 won by checkmate"]

1. e4 {[%clk 0:02:59.2]} 1... c5 {[%clk 0:02:59.7]} 2. Nf3 {[%clk 0:02:58.5]}
2... e6 {[%clk 0:02:59.9]} 3. g3 {[%clk 0:02:56.4]} 3... Nc6 {[%clk 0:02:57.9]}
4. Bg2 {[%clk 0:02:53.8]} 4... Nf6 {[%clk 0:02:57.6]} 5. d3 {[%clk 0:02:51.8]}
5... d6 {[%clk 0:02:54.2]} 6. O-O {[%clk 0:02:47.2]} 6... e5 {[%clk 0:02:54.4]}
7. Nc3 {[%clk 0:02:43.1]} 7... Be7 {[%clk 0:02:54.5]} 8. a4 {[%clk 0:02:41.8]}
8... Be6 {[%clk 0:02:54.8]} 9. Ng5 {[%clk 0:02:36.4]} 9... Bg4 {[%clk
0:02:54.4]} 10. f3 {[%clk 0:02:33.2]} 10... Bh5 {[%clk 0:02:53.4]} 11. g4 {[%clk
0:02:26.7]} 11... Bg6 {[%clk 0:02:51.4]} 12. f4 {[%clk 0:02:19.8]} 12... exf4
{[%clk 0:02:46.3]} 13. Bxf4 {[%clk 0:02:15.9]} 13... h5 {[%clk 0:02:46]} 14. h3
{[%clk 0:02:04.1]} 14... hxg4 {[%clk 0:02:29.7]} 15. hxg4 {[%clk 0:02:03.4]}
15... Ne5 {[%clk 0:02:29.3]} 16. Nf3 {[%clk 0:01:44.4]} 16... Nexg4 {[%clk
0:02:22.8]} 17. Qe1 {[%clk 0:01:28]} 17... Qb6 {[%clk 0:02:15.6]} 18. a5 {[%clk
0:01:24.2]} 18... Qd8 {[%clk 0:02:07.8]} 19. a6 {[%clk 0:00:43.1]} 19... bxa6
{[%clk 0:01:53.7]} 20. Rxa6 {[%clk 0:00:42.2]} 20... Rh5 {[%clk 0:01:31.1]} 21.
Qg3 {[%clk 0:00:41.3]} 21... Rb8 {[%clk 0:01:05]} 22. b3 {[%clk 0:00:30.2]}
22... Rb6 {[%clk 0:01:03.3]} 23. Rxa7 {[%clk 0:00:29.7]} 23... Kf8 {[%clk
0:01:01.8]} 24. Rfa1 {[%clk 0:00:28.9]} 24... Kg8 {[%clk 0:00:59.7]} 25. Nh4
{[%clk 0:00:18.7]} 25... Nxe4 {[%clk 0:00:38]} 26. Nxg6 {[%clk 0:00:13.9]} 26...
Nxg3 {[%clk 0:00:37.2]} 27. Nxe7+ {[%clk 0:00:14.1]} 27... Kh7 {[%clk
0:00:34.2]} 28. Bxg3 {[%clk 0:00:13.7]} 28... Nf6 {[%clk 0:00:31.6]} 29. Ne4
{[%clk 0:00:12.4]} 29... Nxe4 {[%clk 0:00:26.4]} 30. Bxe4+ {[%clk 0:00:12.4]}
30... Kh6 {[%clk 0:00:21.1]} 31. Bf4+ {[%clk 0:00:10.3]} 31... g5 {[%clk
0:00:20.6]} 32. Nf5+ {[%clk 0:00:10.2]} 32... Kh7 {[%clk 0:00:18.8]} 33. Rxf7+
{[%clk 0:00:08.8]} 33... Kg8 {[%clk 0:00:18.4]} 34. Rg7+ {[%clk 0:00:08.1]}
34... Kf8 {[%clk 0:00:17.4]} 35. Raa7 {[%clk 0:00:08.3]} 35... gxf4 {[%clk
0:00:15.8]} 36. Raf7+ {[%clk 0:00:08.2]} 36... Ke8 {[%clk 0:00:16.1]} 37. Re7+
{[%clk 0:00:08.1]} 37... Kf8 {[%clk 0:00:11.9]} 38. Ref7+ {[%clk 0:00:06.7]}
38... Ke8 {[%clk 0:00:11.9]} 39. Bd5 {[%clk 0:00:06.1]} 39... Rg5+ {[%clk
0:00:10.2]} 40. Kf2 {[%clk 0:00:04.9]} 40... Rxg7 {[%clk 0:00:10.2]} 41. Nxg7#
{[%clk 0:00:05.2]} 1-0

[Event "Early-Titled-Tuesday-Blitz-February-20-2024"]
[Site "Chess.com"]
[Date "2024.02.20"]
[Round "8"]
[White "guillembaches"]
[Black "jens1102"]
[Result "0-1"]
[WhiteElo "2529"]
[BlackElo "2719"]
[TimeControl "180+1"]
[EndTime "9:30:39 PST"]
[Termination "jens1102 won on time"]

1. e4 {[%clk 0:03:00.9]} 1... c5 {[%clk 0:02:59.6]} 2. Nf3 {[%clk 0:03:01.2]}
2... Nc6 {[%clk 0:03:00.3]} 3. d4 {[%clk 0:03:01.5]} 3... cxd4 {[%clk
0:03:01.1]} 4. Nxd4 {[%clk 0:03:02.1]} 4... Nf6 {[%clk 0:03:02]} 5. Nc3 {[%clk
0:03:01.8]} 5... e5 {[%clk 0:03:02.8]} 6. Ndb5 {[%clk 0:03:02]} 6... d6 {[%clk
0:03:03.6]} 7. Nd5 {[%clk 0:03:02.4]} 7... Nxd5 {[%clk 0:03:03.1]} 8. exd5
{[%clk 0:03:03]} 8... Nb8 {[%clk 0:03:03.3]} 9. a4 {[%clk 0:02:59.7]} 9... Be7
{[%clk 0:03:03.7]} 10. Be2 {[%clk 0:02:59.5]} 10... O-O {[%clk 0:03:04.1]} 11.
Bd2 {[%clk 0:02:59.8]} 11... Nd7 {[%clk 0:03:04.5]} 12. a5 {[%clk 0:02:59.4]}
12... f5 {[%clk 0:03:02.7]} 13. Bb4 {[%clk 0:02:58.2]} 13... Nf6 {[%clk
0:03:01.1]} 14. O-O {[%clk 0:02:47.9]} 14... f4 {[%clk 0:02:53.8]} 15. Re1
{[%clk 0:02:30.1]} 15... Bf5 {[%clk 0:02:47.3]} 16. c4 {[%clk 0:02:25.4]} 16...
Qd7 {[%clk 0:02:41.9]} 17. a6 {[%clk 0:02:20.5]} 17... b6 {[%clk 0:02:37.2]} 18.
Bf1 {[%clk 0:02:12.5]} 18... g5 {[%clk 0:02:27.5]} 19. Ra3 {[%clk 0:01:54.9]}
19... g4 {[%clk 0:02:25.1]} 20. Bd2 {[%clk 0:01:40]} 20... h5 {[%clk 0:02:22]}
21. b4 {[%clk 0:01:39.8]} 21... h4 {[%clk 0:02:21.2]} 22. g3 {[%clk 0:01:35.5]}
22... hxg3 {[%clk 0:02:16.7]} 23. hxg3 {[%clk 0:01:34.9]} 23... f3 {[%clk
0:02:15.4]} 24. c5 {[%clk 0:01:19.6]} 24... dxc5 {[%clk 0:01:45.3]} 25. d6
{[%clk 0:01:15.5]} 25... Bxd6 {[%clk 0:01:38.1]} 26. Bh6 {[%clk 0:01:06.5]}
26... Rfd8 {[%clk 0:01:35.3]} 27. Nxd6 {[%clk 0:00:59.8]} 27... Qxd6 {[%clk
0:01:35.6]} 28. Qxd6 {[%clk 0:00:59.6]} 28... Rxd6 {[%clk 0:01:36.5]} 29. bxc5
{[%clk 0:00:59]} 29... bxc5 {[%clk 0:01:35.8]} 30. Rxe5 {[%clk 0:00:55]} 30...
Ne4 {[%clk 0:01:25.3]} 31. Bf4 {[%clk 0:00:38.3]} 31... Rf6 {[%clk 0:01:15.9]}
32. Re3 {[%clk 0:00:26]} 32... Nd2 {[%clk 0:00:59.2]} 33. Re8+ {[%clk
0:00:18.4]} 33... Rxe8 {[%clk 0:00:58.9]} 34. Rxe8+ {[%clk 0:00:18.9]} 34... Kf7
{[%clk 0:00:59.8]} 35. Ra8 {[%clk 0:00:16]} 35... Nxf1 {[%clk 0:00:56.7]} 36.
Kxf1 {[%clk 0:00:16.4]} 36... Rxa6 {[%clk 0:00:55]} 37. Ke1 {[%clk 0:00:08.7]}
37... c4 {[%clk 0:00:53.5]} 38. Be3 {[%clk 0:00:05.5]} 38... Ra1+ {[%clk
0:00:50.4]} 39. Kd2 {[%clk 0:00:05.8]} 39... a5 {[%clk 0:00:50.9]} 40. Kc3
{[%clk 0:00:06]} 40... Bd3 {[%clk 0:00:51]} 41. Ra7+ {[%clk 0:00:05.5]} 41...
Ke6 {[%clk 0:00:51]} 42. Kd4 {[%clk 0:00:05.8]} 42... a4 {[%clk 0:00:49.6]} 43.
Ra6+ {[%clk 0:00:05.8]} 43... Kd7 {[%clk 0:00:50]} 44. Bf4 {[%clk 0:00:05.6]}
44... a3 {[%clk 0:00:50]} 45. Kd5 {[%clk 0:00:05.8]} 45... a2 {[%clk 0:00:49]}
46. Ra7+ {[%clk 0:00:06]} 46... Ke8 {[%clk 0:00:49.4]} 47. Be5 {[%clk
0:00:02.3]} 47... Rd1 {[%clk 0:00:47.6]} 48. Ke6 {[%clk 0:00:02]} 48... Be4
{[%clk 0:00:36.8]} 49. Rxa2 {[%clk 0:00:01.6]} 49... c3 {[%clk 0:00:34.9]} 0-1